[Event "87th Spanish Championship 2022"]
[Site "Linares"]
[Date "2022.08.11"]
[Round "1.15"]
[White "Fernandez Garcia, Gumersindo"]
[Black "Garcia Ramos, Daniel"]
[Result "1/2-1/2"]
[ECO "D35"]
[WhiteElo "2160"]
[BlackElo "2438"]
[Annotator "TA"]
[PlyCount "143"]
[EventDate "2022.08.11"]
[EventType "swiss"]
[EventCountry "ESP"]
[SourceTitle "playchess.com"]
[Source "ChessBase"]
[SourceQuality "1"]
[TimeControl "5400+30"]

{[%evp 18,143,17,14,18,16,28,24,26,15,12,-70,-83,-75,-54,-54,-42,-52,-18,-66,-63,-99,-91,-89,-98,-95,-29,-22,-22,-35,0,-6,0,0,0,0,0,0,0,-5,0,-36,-21,-17,-21,-19,-20,-25,-20,-68,-68,-68,-68,-68,-68,-70,-68,-68,-68,-68,-68,-70,-68,-70,-68,-70,-37,-41,-41,-41,-41,-41,-41,-98,-41,-41,-41,-41,-41,-41,-41,-41,-41,-41,-41,-41,-41,-98,-41,-98,-37,-37,-37,-37,-14,-22,0,0,0,0,0,0,0,0,0,0,0,0,0,0,0,0,0,0,0,0,0,0,0,0,0,0,0,0,0,-41,0,-8]} 1. d4 {[%emt 0:00:02]} d5 {[%emt 0:00:44]} 2. c4 {[%emt 0:00:16]} e6 {[%emt 0:00:05]} 3. Nc3 {[%emt 0:00:17]} Nf6 {[%emt 0:00:07]} 4. cxd5 {[%emt 0:00:08]} exd5 {[%emt 0:00:04]} 5. Bg5 {[%emt 0:00:08]} c6 {[%emt 0:00:04]} 6. e3 {[%emt 0:00:10]} h6 {[%emt 0:00:04]} 7. Bh4 {[%emt 0:00:40]} Be7 {[%emt 0:00:06]} 8. Bd3 {[%emt 0:01:25]} O-O {[%emt 0:00:08]} 9. Qc2 {[%emt 0:00:08]} Re8 {[%emt 0:00:04]} 10. Nge2 {[%emt 0:00:15]} a5 {[%emt 0:00:08] D36: Queen's Gambit Declined: Exchange Variation: Main line (5 Bg5 c6 6 Qc2).} 11. O-O {[%emt 0:00:59]} Na6 {[%emt 0:00:05]} 12. a3 {[%emt 0:00:47] Against Nb4} Nc7 {[%emt 0:00:07] White has an edge.} 13. f3 {[%emt 0:04:07]} c5 {[%emt 0:00:13][%cal Bc6c5,Bc5c4][%mdl 32] [#]} 14. Rad1 $146 {[%emt 0:08:12]} (14. dxc5 $11 Bxc5 15. Nd1 (15. Bh7+ Kh8 $11)) ({Predecessor:} 14. a4 c4 15. Bf5 Na6 16. Bxc8 Nb4 17. Qd2 Qxc8 18. Nb5 Qd7 19. Nec3 Rad8 20. Rad1 {0-1 (61) Wojtaszek,R (2686)-Bluebaum,M (2642) Warsaw 2021}) 14... c4 $15 {[%emt 0:10:29]} 15. Bf5 {[%emt 0:00:22]} b5 {[%emt 0:00:35]} 16. Bxc8 {[%emt 0:08:50]} Rxc8 {[%emt 0:01:14]} 17. e4 {[%emt 0:06:16]} b4 {[%emt 0:13:33]} (17... dxe4 $5 {[%cal Rf6d5]} 18. Bxf6 Bxf6 $11) 18. axb4 {[%emt 0:07:26]} (18. Na4 $11 {might be stronger.}) 18... axb4 {[%emt 0:00:15]} 19. Na4 {[%emt 0:03:56]} dxe4 {[%emt 0:06:39]} 20. Bxf6 {[%emt 0:04:40]} Bxf6 {[%emt 0:03:40]} 21. fxe4 {[%emt 0:01:24]} b3 {[%emt 0:04:28]} (21... Ne6 $17 {[%cal Re6d4]} 22. e5 Bg5) 22. Qxc4 $11 {[%emt 0:07:16] Qd3 is the strong threat.} Rxe4 {[%emt 0:01:09] Strongly threatening ...Nd5.} 23. Nac3 {[%emt 0:12:52] Inhibits Nd5. Pair of Knights!} Re3 {[%emt 0:08:08]} 24. Qxb3 {[%emt 0:02:30]} Rb8 {[%emt 0:00:47]} 25. Qc2 {[%emt 0:02:09]} Nd5 {[%emt 0:10:50]} 26. Nxd5 {[%emt 0:07:14]} Qxd5 {[%emt 0:00:06]} 27. Nc3 {[%emt 0:00:26]} Qb7 {[%emt 0:19:43]} 28. Qf2 {[%emt 0:05:06]} Ree8 {[%emt 0:05:42]} 29. b4 {[%emt 0:06:49]} Qc6 {[%emt 0:03:33]} 30. Qf3 {[%emt 0:01:39]} Qxf3 {[%emt 0:07:47]} 31. Rxf3 {[%emt 0:00:02]} Red8 {[%emt 0:00:24]} ({Don't do} 31... Rxb4 32. Rxf6 $1 gxf6 33. Nd5 $14) 32. b5 {[%emt 0:02:55]} Rxd4 {[%emt 0:00:25]} 33. Rxd4 {[%emt 0:02:45]} (33. Rb1 $1 $11 {deserves consideration.}) 33... Bxd4+ $15 {[%emt 0:00:06]} 34. Kf1 {[%emt 0:00:02]} Bxc3 {[%emt 0:01:18]} 35. Rxc3 {[%emt 0:00:01]} Rxb5 {[%emt 0:00:06][%mdl 4096] Endgame KR-KR} 36. Rc8+ {[%emt 0:00:35]} Kh7 {[%emt 0:00:06]} 37. Rc7 {[%emt 0:00:16]} Kg6 {[%emt 0:00:14]} 38. Kf2 {[%emt 0:00:36]} Rf5+ {[%emt 0:01:16]} 39. Kg3 {[%emt 0:00:20]} Ra5 {[%emt 0:02:16]} 40. h3 {[%emt 0:00:19]} Ra3+ {[%emt 0:00:11]} 41. Kf2 {[%emt 0:00:20]} f5 {[%emt 0:00:21]} 42. Rc6+ {[%emt 0:01:41]} Kg5 {[%emt 0:01:55]} 43. Rc7 {[%emt 0:00:29]} g6 {[%emt 0:00:08]} 44. Rc6 {[%emt 0:00:14]} Ra4 {[%emt 0:00:36]} 45. Kf3 {[%emt 0:00:17]} (45. g3 $1 $15) 45... Rf4+ {[%emt 0:01:05]} (45... h5 $17 46. Rd6 h4) 46. Kg3 {[%emt 0:02:16][%cal Oc6g6]} Rf1 {[%emt 0:00:07]} 47. Rc5 $1 {[%emt 0:00:28]} Kh5 {[%emt 0:00:15]} 48. Kh2 {[%emt 0:02:07]} Rf2 {[%emt 0:02:14]} 49. Kg3 {[%emt 0:00:22]} Ra2 {[%emt 0:00:32]} 50. Rb5 {[%emt 0:00:39]} Ra3+ {[%emt 0:00:20]} 51. Kf2 {[%emt 0:00:39]} Kg5 {[%emt 0:00:10]} 52. Rc5 {[%emt 0:00:28]} (52. g3 $15) 52... Ra6 {[%emt 0:00:26]} ({Better is} 52... h5 $17 53. Rc6 Ra2+ 54. Kf3 h4) 53. Kf3 {[%emt 0:00:42] [#]} (53. g3 $15) 53... Kf6 {[%emt 0:00:08]} ({Black should try} 53... h5 $1 $17 54. Rb5 h4) 54. h4 {[%emt 0:00:50][%cal Bh3h4,Bh4h5,Bh5h6,Bh6h7][%mdl 32]} Ra3+ {[%emt 0:00:26]} 55. Kf2 {[%emt 0:00:11]} f4 {[%emt 0:00:12]} 56. Rb5 {[%emt 0:00:43]} Rg3 {[%emt 0:01:14]} 57. Rb6+ {[%emt 0:00:54]} Kf5 {[%emt 0:01:02]} 58. h5 {[%emt 0:00:01]} g5 {[%emt 0:00:45]} 59. Rxh6 {[%emt 0:00:02]} Kg4 {[%emt 0:00:19]} 60. Rh8 {[%emt 0:01:01]} Ra3 {[%emt 0:00:05] aiming for ...Ra2+.} 61. h6 {[%emt 0:00:27]} Ra2+ {[%emt 0:00:59]} 62. Kf1 {[%emt 0:00:01]} Ra1+ {[%emt 0:00:37]} 63. Kf2 {[%emt 0:00:11]} Ra2+ {[%emt 0:00:26]} 64. Kf1 {[%emt 0:00:01]} Ra7 {[%emt 0:00:13]} 65. Kf2 {[%emt 0:00:15]} Kh5 {[%emt 0:00:22]} 66. h7 {[%emt 0:00:12]} Kg4 {[%emt 0:01:00]} 67. Kf1 {[%emt 0:00:31]} Rb7 {[%emt 0:00:24]} 68. Kf2 {[%emt 0:00:07]} Ra7 {[%emt 0:00:21]} 69. Kf1 {[%emt 0:00:01]} Kh5 {[%emt 0:00:39]} 70. Kf2 {[%emt 0:00:01]} Kh6 {[%emt 0:00:18]} 71. Kf3 {[%emt 0:00:28]} Rb7 {[%emt 0:00:41]} 72. Ke4 {Weighted Error Value: White=0.11 (very precise) /Black=0.10 (very precise)} 1/2-1/2

[Event "87th Spanish Championship 2022"]
[Site "Linares"]
[Date "2022.08.11"]
[Round "1.16"]
[White "Gonzalez Perez, Arian"]
[Black "Garcia Fernandez, Victor"]
[Result "1-0"]
[ECO "D33"]
[WhiteElo "2418"]
[BlackElo "2158"]
[Annotator "TA"]
[PlyCount "80"]
[EventDate "2022.08.11"]
[EventType "swiss"]
[EventCountry "ESP"]
[SourceTitle "playchess.com"]
[Source "ChessBase"]
[SourceQuality "1"]
[TimeControl "5400+30"]

{[%evp 16,80,36,29,32,31,20,20,45,11,13,0,0,0,11,-3,0,-41,47,48,52,58,58,51,51,51,56,55,56,60,62,62,60,55,64,48,72,72,83,81,100,38,73,85,68,83,151,143,199,205,544,529,485,460,428,438,396,395,544,552,602,594,674,556,2047,2004,1212]} 1. d4 {[%emt 0:02:44]} d5 {[%emt 0:00:11]} 2. c4 {[%emt 0:00:12]} e6 {[%emt 0:00:07]} 3. Nc3 {[%emt 0:00:38]} c5 {[%emt 0:00:15]} 4. cxd5 {[%emt 0:00:33]} exd5 {[%emt 0:00:02]} 5. Nf3 {[%emt 0:00:42][%cal Bg1f3,Bf3d4,Bd4b3][%mdl 32]} Nf6 {[%emt 0:00:19]} 6. g3 {[%emt 0:00:08]} Nc6 {[%emt 0:00:10]} 7. Bg2 {[%emt 0:00:12]} cxd4 {[%emt 0:00:09] is the new trend.} 8. Nxd4 {[%emt 0:00:13]} Bc5 {[%emt 0:00:08]} 9. Nb3 {[%emt 0:10:00][%csl LRc5,LRd5]} Bb6 {[%emt 0:00:10] D33: Tarrasch Defence: 6 g3 sidelines.} 10. O-O {[%emt 0:00:04]} ({Much worse is} 10. Bxd5 Nb4 11. Bf3 Qxd1+ 12. Kxd1 Ng4 13. Bxg4 Bxg4 $11) 10... d4 {[%emt 0:00:12]} 11. Na4 {[%emt 0:00:05]} O-O {[%emt 0:00:09] The position is equal.} 12. Nxb6 {[%emt 0:00:04]} axb6 {[%emt 0:00:16]} 13. e3 {[%emt 0:00:05]} d3 {[%emt 0:01:08]} 14. Bd2 {[%emt 0:01:39]} Bg4 {[%emt 0:09:04] [#]} 15. f3 $146 {[%emt 0:01:11]} ({Predecessor:} 15. Qb1 Qd7 16. Bc3 Bh3 17. Bxh3 Qxh3 18. Bxf6 gxf6 19. Qxd3 Ne5 20. Qe4 Qh5 21. Qg2 {1-0 (36) Rangel,D (2210)-Kett,T (2178) Chess.com INT 2021}) 15... Be6 {[%emt 0:00:52]} 16. Bc3 {[%emt 0:04:49]} Nd5 {[%emt 0:03:26]} (16... Bc4 $15) 17. Qxd3 $14 {[%emt 0:03:07]} Ndb4 {[%emt 0:00:18]} 18. Qxd8 {[%emt 0:05:26]} Rfxd8 {[%emt 0:00:48]} 19. Bxb4 {[%emt 0:09:31]} Nxb4 {[%emt 0:00:03]} 20. Nd4 {[%emt 0:00:11] Inhibits Nc2.} Bxa2 {[%emt 0:17:47]} 21. Rfd1 {[%emt 0:02:12]} Bd5 {[%emt 0:04:29]} 22. Rxa8 {[%emt 0:05:57]} Rxa8 {[%emt 0:00:09]} 23. f4 {[%emt 0:01:12]} Bxg2 {[%emt 0:02:24]} 24. Kxg2 {[%emt 0:00:32][%mdl 4096] Endgame KRN-KRN} g6 {[%emt 0:08:02]} 25. Kf3 {[%emt 0:03:24]} Ra2 {[%emt 0:12:09]} 26. Rd2 {[%emt 0:01:49]} Kf8 {[%emt 0:02:01]} 27. Nb5 {[%emt 0:01:32]} Na6 {[%emt 0:01:31]} 28. g4 {[%emt 0:13:53] White is more active.} (28. Nc3 $16 Ra1 29. e4) 28... Nc5 {[%emt 0:03:11]} 29. Nc3 {[%emt 0:01:03]} Ra1 {[%emt 0:01:01]} 30. b4 {[%emt 0:00:36]} Ra3 {[%emt 0:05:40] [#]} ({Black should play} 30... Na6) 31. Nd5 $1 $16 {[%emt 0:03:04]} ({Don't take} 31. bxc5 $6 Rxc3 32. cxb6 Rb3 $14) 31... Nd7 {[%emt 0:11:01]} (31... Na6 $16 32. b5 Nc5) 32. Rc2 $18 {[%emt 0:03:06]} Rd3 $2 {[%emt 0:01:40]} (32... f5 {is a better chance.} 33. gxf5 gxf5) 33. Ke4 {[%emt 0:00:11]} Rd1 {[%emt 0:00:19]} 34. g5 {[%emt 0:00:19]} Kg7 {[%emt 0:08:08]} 35. Rc7 $1 {[%emt 0:02:16][%csl LRb7,LRd7]} Nf8 {[%emt 0:00:24]} 36. Rxb7 {[%emt 0:00:26]} Rh1 {[%emt 0:00:19]} 37. Nxb6 {[%emt 0:00:55] White is clearly winning.} Rxh2 {[%emt 0:01:02]} 38. Nc4 {[%emt 0:00:05]} Kg8 {[%emt 0:01:50]} 39. Ne5 {[%emt 0:01:01] [#] Hoping for Ng4.} Rb2 {[%emt 0:00:28]} 40. Nxf7 {[%emt 0:00:14] Ke5 is the strong threat.} Ne6 {[%emt 0:01:00] Weighted Error Value: White=0.09 (flawless) /Black=0.32} 1-0

[Event "87th Spanish Championship 2022"]
[Site "Linares"]
[Date "2022.08.11"]
[Round "1.17"]
[White "Gomez Carreno, Martin"]
[Black "Moreno Ruiz, Javier"]
[Result "1/2-1/2"]
[ECO "B45"]
[WhiteElo "2155"]
[BlackElo "2428"]
[Annotator "TA"]
[PlyCount "142"]
[EventDate "2022.08.11"]
[EventType "swiss"]
[EventCountry "ESP"]
[SourceTitle "playchess.com"]
[Source "ChessBase"]
[SourceQuality "1"]
[TimeControl "5400+30"]

{[%evp 13,142,10,17,16,13,18,26,8,14,14,6,19,5,0,15,4,5,-34,-33,-57,-38,-36,-32,-34,-32,-42,-55,-42,-26,-41,-36,-29,-36,-39,-45,-39,-31,-30,-21,-28,-19,-31,-31,-35,-13,-41,0,-13,-18,-16,-20,-18,-14,-106,-24,-51,50,26,252,0,0,0,0,0,0,-52,-47,-52,-50,-61,-43,-36,-36,-41,-54,-60,-47,-64,0,0,0,0,0,0,0,0,0,0,0,0,0,0,0,0,0,0,0,0,0,0,0,0,0,0,0,0,0,0,0,0,0,0,0,0,0,0,0,0,0,0,0,0,0,0,0,0,0,0,0,0,0]} 1. e4 {[%emt 0:00:01]} c5 {[%emt 0:02:10]} 2. Nc3 {[%emt 0:00:07]} e6 {[%emt 0:00:58]} 3. Nf3 {[%emt 0:00:14]} Nc6 {[%emt 0:00:11]} 4. d4 {[%emt 0:00:12]} cxd4 {[%emt 0:00:11]} 5. Nxd4 {[%emt 0:00:06]} Nf6 {[%emt 0:00:10]} 6. g3 {[%emt 0:00:34]} d5 {[%emt 0:01:22]} 7. Bg2 {[%emt 0:01:32]} Qb6 {[%emt 0:01:01]} 8. Nb3 {[%emt 0:08:30][%cal Re4d5] B45: Sicilian Four Knights.} d4 {[%emt 0:06:55]} 9. e5 {[%emt 0:07:42]} Nd7 {[%emt 0:14:11]} (9... dxc3 {is more complex.} 10. exf6 Qb5 11. Rb1 cxb2 12. Bxb2 e5) 10. Ne2 {[%emt 0:02:23][%cal Re2d4] White has an edge.} Bb4+ {[%emt 0:01:28]} (10... Ncxe5 11. Nexd4 Be7 12. O-O $16) 11. c3 {[%emt 0:04:39]} dxc3 {[%emt 0:01:12]} 12. bxc3 {[%emt 0:00:13]} Be7 {[%emt 0:00:15]} 13. Be3 {[%emt 0:01:37]} Qc7 {[%emt 0:01:55]} 14. f4 {[%emt 0:01:35]} b6 {[%emt 0:02:10] [#]} 15. Nbd4 $146 {[%emt 0:15:48]} ({Predecessor:} 15. Ned4 Bb7 16. Nb5 Qc8 17. O-O O-O 18. Nd6 Bxd6 19. Qxd6 Rd8 20. Qa3 Nf8 21. c4 {½-½ (47) Stanojoski,Z (2455)-Vasovski,N (2309) Gevgelija 2002}) 15... Bb7 {[%emt 0:00:49] aiming for ...Nxd4.} 16. Nb5 {[%emt 0:01:04]} Qb8 {[%emt 0:00:44][%cal Oc6e5]} (16... Qc8 $5 {[%cal Rc6e5]} 17. O-O Na5 18. Bxb7 Qxb7 $11) 17. O-O {[%emt 0:05:35]} Na5 {[%emt 0:07:42]} 18. Bxb7 {[%emt 0:03:34]} Qxb7 {[%emt 0:04:19]} 19. Nd6+ {[%emt 0:03:25]} Bxd6 {[%emt 0:00:07]} 20. Qxd6 {[%emt 0:00:08]} ({Don't play} 20. exd6 O-O 21. Nd4 Nc4 $17) 20... Qe4 {[%emt 0:17:28]} 21. Qd4 {[%emt 0:07:13]} Nc5 {[%emt 0:01:28]} 22. Qxe4 {[%emt 0:04:11]} Nxe4 {[%emt 0:00:07]} 23. Kg2 {[%emt 0:01:32]} Nc4 {[%emt 0:02:41] Pair of Knights!} 24. Bd4 {[%emt 0:01:44]} f5 {[%emt 0:07:10]} 25. exf6 $1 {[%emt 0:02:13]} gxf6 {[%emt 0:01:24]} 26. Ng1 {[%emt 0:01:41]} Kf7 {[%emt 0:02:17]} 27. Nf3 {[%emt 0:02:36]} Rhg8 {[%emt 0:02:11]} 28. Rfe1 {[%emt 0:05:29]} Ned6 {[%emt 0:00:18]} 29. Bf2 {[%emt 0:05:31]} Nf5 {[%emt 0:01:31]} 30. Rad1 {[%emt 0:01:52]} Rad8 {[%emt 0:01:09] Inhibits Rd7+.} 31. Rxd8 {[%emt 0:01:39]} Rxd8 {[%emt 0:00:06]} 32. g4 {[%emt 0:00:40]} Ne7 {[%emt 0:00:55]} 33. Bd4 {[%emt 0:05:15]} (33. Re4 $11 Nd6 34. Ra4) 33... Rd5 {[%emt 0:07:07]} (33... Nd5 $17 34. Kg3 Nd6) 34. g5 {[%emt 0:01:26]} f5 {[%emt 0:00:23]} (34... Ng6 $15 35. Bxf6 Nxf4+ 36. Kg1 Nh3+ 37. Kg2 Nf4+ 38. Kg1 Nh3+ 39. Kg2 Nf4+) 35. h4 $1 $14 {[%emt 0:00:55] Threatens to win with h5.} Ra5 $2 {[%emt 0:04:31] [#]} (35... Nd6 $11 {and Black is okay.}) 36. Re2 $2 {[%emt 0:01:16]} (36. h5 $1 $18) 36... Ng6 $11 {[%emt 0:03:43]} 37. Kg3 {[%emt 0:01:04]} Nd6 {[%emt 0:00:05]} 38. Ne5+ {[%emt 0:02:44]} Nxe5 {[%emt 0:00:15]} 39. Rxe5 {[%emt 0:00:05][%mdl 4096] Endgame KRB-KRN} (39. Bxe5 $11 Ne4+ 40. Kf3) 39... Ne4+ $15 {[%emt 0:01:28]} ({Worse is} 39... Rxa2 40. Re1 $17) 40. Kf3 {[%emt 0:00:14]} Rxa2 {[%emt 0:00:29] ...Rh2 is the strong threat.} 41. h5 $1 {[%emt 0:00:12]} Ra3 {[%emt 0:03:45]} 42. g6+ {[%emt 0:01:04][%mdl 64] [#] Decoy} hxg6 {[%emt 0:00:02]} 43. hxg6+ {[%emt 0:00:47]} Kxg6 {[%emt 0:00:06]} 44. Rxe6+ {[%emt 0:00:05]} Kf7 {[%emt 0:00:22]} 45. Re5 {[%emt 0:00:39]} Ra5 {[%emt 0:02:14]} (45... Nd6 $1 $15) 46. Rxa5 $11 {[%emt 0:01:21] The position is equal.} bxa5 {[%emt 0:00:01] KB-KN} 47. Ke3 {[%emt 0:00:43] Prevents Nd2.} Ke6 {[%emt 0:00:18] Strongly threatening ...Kd5.} 48. Kd3 {[%emt 0:00:12]} a6 {[%emt 0:01:50]} 49. c4 {[%emt 0:00:38]} Kd6 {[%emt 0:00:10]} 50. Bb2 {[%emt 0:00:36]} Nc5+ {[%emt 0:00:27]} 51. Ke3 {[%emt 0:00:40]} Ne6 {[%emt 0:00:11]} 52. Ba3+ {[%emt 0:00:15]} Kc6 {[%emt 0:00:12]} 53. Be7 {[%emt 0:00:19]} a4 {[%emt 0:00:17]} 54. Bb4 {[%emt 0:00:35]} Kb6 {[%emt 0:00:56]} 55. Ba3 {[%emt 0:00:06]} Kc7 {[%emt 0:00:20]} 56. Be7 {[%emt 0:00:13]} Kd7 {[%emt 0:00:21]} 57. Ba3 {[%emt 0:00:08]} Ke8 {[%emt 0:00:46]} 58. Bd6 {[%emt 0:00:12]} Kd7 {[%emt 0:00:54]} 59. Ba3 {[%emt 0:00:01]} Kc6 {[%emt 0:00:39]} 60. Bb4 {[%emt 0:00:13]} Kb6 {[%emt 0:00:42]} 61. Ba3 {[%emt 0:00:09]} Kb7 {[%emt 0:00:23]} 62. Be7 {[%emt 0:00:16]} a5 {[%emt 0:00:51]} 63. Bd6 {[%emt 0:00:28]} Nd8 {[%emt 0:00:41]} 64. Kd4 {[%emt 0:00:37]} Nc6+ {[%emt 0:00:06]} 65. Kc3 {[%emt 0:00:39]} Kc8 {[%emt 0:00:14]} 66. Bc5 {[%emt 0:00:37]} Kd7 {[%emt 0:00:06]} 67. Kb2 {[%emt 0:00:55]} Nb4 {[%emt 0:00:57] Hoping for ...Nd3+.} 68. Ka3 {[%csl LRa4,LRb4]} Nd3 {[%emt 0:00:19][%csl LRc5,LRf4]} 69. Be3 {[%emt 0:00:35]} Kc6 {[%emt 0:00:44]} 70. Kxa4 {[%emt 0:00:22]} Nb2+ {[%emt 0:00:10]} 71. Kb3 {[%emt 0:00:17]} Nd3 {[%emt 0:00:08] Weighted Error Value: White=0.15 (very precise) /Black=0.22 (precise)} 1/2-1/2

[Event "87th Spanish Championship 2022"]
[Site "Linares"]
[Date "2022.08.11"]
[Round "1.18"]
[White "Espinosa Aranda, Angel"]
[Black "Cobo Montejo, Miguel Angel"]
[Result "1-0"]
[ECO "B91"]
[WhiteElo "2439"]
[BlackElo "2152"]
[Annotator "TA"]
[PlyCount "79"]
[EventDate "2022.08.11"]
[EventType "swiss"]
[EventCountry "ESP"]
[SourceTitle "playchess.com"]
[Source "ChessBase"]
[SourceQuality "1"]
[TimeControl "5400+30"]

{[%evp 18,79,41,23,28,16,12,0,21,9,24,29,30,26,87,80,87,83,96,61,82,70,74,72,93,89,130,110,108,94,172,148,347,341,418,404,417,382,393,413,488,400,386,360,539,518,537,456,596,526,563,491,494,499,1672,1623,2697,2701,2325,2243,2032,1998,29997,29998]} 1. e4 {[%emt 0:00:53]} c5 {[%emt 0:00:12]} 2. Nf3 {[%emt 0:00:11]} d6 {[%emt 0:00:39]} 3. d4 {[%emt 0:00:20]} cxd4 {[%emt 0:00:10]} 4. Nxd4 {[%emt 0:00:15]} Nf6 {[%emt 0:00:19]} 5. Nc3 {[%emt 0:00:13]} a6 {[%emt 0:00:25]} 6. g3 {[%emt 0:00:42]} g6 {[%emt 0:06:09]} 7. Bg2 {[%emt 0:01:18]} Bg7 {[%emt 0:00:43]} 8. O-O {[%emt 0:00:20]} O-O {[%emt 0:00:29]} 9. h3 {[%emt 0:01:26]} Qc7 {[%emt 0:08:36]} 10. a4 {[%emt 0:02:47]} Nc6 {[%emt 0:01:55] B91: Sicilian Najdorf: 6 g3.} 11. Be3 {[%emt 0:00:29]} Bd7 {[%emt 0:02:45]} 12. Re1 {[%emt 0:02:04]} Rac8 {[%emt 0:04:07] The position is equal.} 13. Nde2 {[%emt 0:07:19]} Ne5 {[%emt 0:13:53]} 14. b3 {[%emt 0:05:04]} Bc6 {[%emt 0:04:39] [#]} 15. a5 $146 {[%emt 0:02:10]} ({Predecessor:} 15. Ra2 Bd7 16. Nd5 Nxd5 17. exd5 f5 18. f4 Nf7 19. a5 Qd8 20. Bb6 Qe8 21. c4 {1-0 (31) Trepp,M (2210)-Blackburn,G Luzern 1982}) 15... Be8 {[%emt 0:06:29]} (15... e6 $11 {remains equal.}) 16. Qd2 {[%emt 0:04:48]} Nc6 {[%emt 0:03:25]} 17. Bb6 {[%emt 0:06:48]} Qb8 {[%emt 0:01:25]} 18. Ra4 {[%emt 0:04:45]} Nd7 {[%emt 0:01:39]} 19. Be3 {[%emt 0:00:10]} Nc5 {[%emt 0:02:14]} 20. Ra3 {[%emt 0:00:09]} Kh8 {[%emt 0:10:21]} 21. Nd5 {[%emt 0:01:57]} Rd8 {[%emt 0:01:50]} 22. b4 {[%emt 0:05:08]} Nd7 {[%emt 0:02:15]} 23. c4 {[%emt 0:00:18] White is much more active. The black rooks are badly placed.} Nf6 {[%emt 0:01:40]} (23... e6 $16) 24. Bh6 {[%emt 0:04:46]} Nxd5 $2 {[%emt 0:01:22] This move loses the game for Black.} (24... Bxh6 $16 {might work better.} 25. Qxh6 Bd7) 25. exd5 $18 {[%emt 0:01:19]} ({Not} 25. cxd5 Na7 $16) ({Don't do} 25. Bxg7+ Kxg7 26. exd5 Na7 $18) 25... Ne5 {[%emt 0:00:52]} 26. Bxg7+ {[%emt 0:00:25]} Kxg7 {[%emt 0:00:06]} 27. f4 {[%emt 0:00:19][%cal Bf2f4,Bf4f5][%mdl 32]} Nd7 {[%emt 0:00:39]} 28. Nd4 {[%emt 0:01:06]} Rc8 {[%emt 0:02:39]} 29. Bf1 {[%emt 0:04:57]} ({Don't take} 29. Rxe7 Kg8 30. Ne6 Nf6 31. Nxf8 Kxf8 $18) 29... Nf6 {[%emt 0:05:28]} 30. Rxe7 {[%emt 0:00:16]} Kg8 {[%emt 0:00:36]} (30... Bd7 {was called for.} 31. Qb2 Rc7) 31. f5 {[%emt 0:07:49] Qh6 is the strong threat.} Rc7 {[%emt 0:01:19]} 32. Re1 {[%emt 0:01:08]} Qa7 {[%emt 0:03:41]} 33. Kh2 {[%emt 0:02:15]} b5 {[%emt 0:03:07]} 34. axb6 {[%emt 0:03:23]} Qxb6 {[%emt 0:00:20]} 35. Rf3 {[%emt 0:01:01] And now fxg6 would win.} Kg7 {[%emt 0:01:14]} (35... Bd7 $142 36. fxg6 fxg6) 36. fxg6 {[%emt 0:01:14]} hxg6 {[%emt 0:00:48] [#]} 37. Nf5+ $1 {[%emt 0:03:13][%cal Bd4f5,Bf5h6,Bh6g4][%mdl 544]} Kg8 {[%emt 0:01:59]} 38. Nh6+ {[%emt 0:00:37]} Kg7 {[%emt 0:00:36] [#]} 39. Rxf6 $1 {[%emt 0:00:09][%mdl 512]} Kxf6 {[%emt 0:00:39]} (39... Bd7 40. c5) 40. Ng4+ {[%emt 0:00:06] Weighted Error Value: White=0.18 (very precise) /Black=0.69} 1-0